Cogmind - Beta 14 @@@ ROGUE MODE // 2024.11.14 @ 07:44:34 Player: Fangrelle Result: Destroyed by G-34 Mercenary with Small Laser Performance ------------- Evolutions (1) 500 Regions Visited (2) 400 Robots Destroyed (33) 165 Value Destroyed (894) 894 Prototype IDs (0) 0 Alien Tech Used (0) 0 Bonus (0) 0 TOTAL SCORE: 1959 Bonus ------- None Cogmind --------- Core Integrity 0/400 Matter 300/300 Energy 237/250 System Corruption 7% Temperature Cool (6) Movement Core (1550) Ox30 Location -9/Materials Parts ------- > --- POWER (1) -------- Ion Engine > --- PROPULSION (2) --- (None) > --- UTILITY (4) ------ Improved Heat Sink Huge Storage Unit Melee Analysis Suite > --- WEAPON (2) ------- Beam Rifle Katana > --- INVENTORY (25) --- Visual Processing Unit Datajack Mining Laser Peak State ------------ > --- POWER ------------ Light Ion Engine > --- PROPULSION ------- Aluminum Leg > --- UTILITY ---------- Improved Heat Sink Huge Storage Unit Melee Analysis Suite Hacking Suite > --- WEAPON ----------- Beam Rifle Katana > --- INVENTORY -------- Visual Processing Unit Datajack Mining Laser [Rating: 17] Favorites ----------- Power Ion Engine Engine Ion Engine Propulsion Aluminum Leg Treads Light Treads Leg Aluminum Leg Wheel Compact Wheel Utility Huge Storage Unit Device Structural Scanner Storage Huge Storage Unit Processor Targeting Computer Hackware Hacking Suite Weapon Medium Laser Energy Gun Medium Laser Ballistic Gun Light Assault Rifle Slashing Weapon Katana Build | -11 -10 -9 ------- Run | Yrd Mat Mat Slots Evolved 2 | . . 2 Power . | . . . Propulsion . | . . . Utility 2 | . . 2 Weapon . | . . . Parts Attached 28 | . 14 14 Power 6 | . 3 3 Engine 6 | . 3 3 Core . | . . . Reactor . | . . . Propulsion 7 | . 2 5 Treads 4 | . 2 2 Leg 1 | . . 1 Wheel 2 | . . 2 Hover . | . . . Flight . | . . . Utility 8 | . 5 3 Device 2 | . 1 1 Storage 3 | . 3 . Processor 2 | . 1 1 Hackware 1 | . . 1 Protection . | . . . Artifact . | . . . Weapon 7 | . 4 3 Energy Gun 6 | . 4 2 Energy Cannon . | . . . Ballistic Gun . | . . . Ballistic Cannon . | . . . Launcher . | . . . Special Weapon . | . . . Impact Weapon . | . . . Slashing Weapon 1 | . . 1 Piercing Weapon . | . . . Special Melee Weapon . | . . . Unidentified Prototypes . | . . . Parts Lost 17 | . 5 12 Power 4 | . 2 2 Propulsion 6 | . 1 5 Utility 3 | . 1 2 Weapon 4 | . 1 3 Highest Loss Streak 5 | . 2 5 To Critical Strikes . | . . . Average Slot Usage (%) 89 | . 97 74 Engine 10 | . 12 7 Treads 10 | . 11 7 Leg 12 | . 16 5 Device 5 | . 6 5 Storage 13 | . 14 11 Processor 7 | . 7 9 Hackware 1 | . . 5 Energy Gun 22 | . 26 13 Slashing Weapon 2 | . . 7 Peak Build Rating 17 | 6 9 17 Average Rating 8 | 6 7 12 On Entrance 6 | 6 6 8 Naked Turns . | . . . Heaviest Build 91 | 11 89 91 Greatest Support 40 | 20 40 40 Greatest Overweight (x) 9 | . 4 9 Average Overweight (x) 2 | . 1 4 Largest Inventory Capacity 25 | 8 25 25 Average Capacity 20 | 8 18 25 Most Carried 9 | 6 9 8 Average Carried 5 | 6 6 4 Final Capacity 25 | 8 25 25 Final Carried 6 | 6 6 3 Class Distribution -------------------- 83% | Mutant 16% | Scavenger-Mutant Dominant Class ---------------- Mutant | -10/Materials Scavenger-Mutant | -9/Materials Resources | -11 -10 -9 ----------- Run | Yrd Mat Mat Matter Collected 449 | 183 166 100 Remotely . | . . . Salvage Created 1126 | . 536 590 Parts 77 | . 40 37 Haulers Intercepted . | . . . Recyclers Shooed . | . . . Parts Field Recycled . | . . . Retrieved Matter . | . . . Parts Self-Destructed . | . . . Prevented . | . . . Kills | -11 -10 -9 ------- Run | Yrd Mat Mat Combat Hostiles Destroyed 27 | . 15 12 Melee 8 | . . 8 Guns 19 | . 15 4 Classes Destroyed 8 | . 5 3 Worker 1 | . 1 . Operator 1 | . 1 . Watcher 4 | . 2 2 Swarmer 6 | . 6 . Grunt 18 | . 9 9 Brawler 1 | . . 1 Duelist 1 | . . 1 Sentry 1 | . . 1 Best Kill Streak 4 | . 4 4 Combat Bots Only 4 | . 3 4 Max Kills in Single Turn 1 | . 1 1 Gunslinging . | . . . Exploded . | . . . Melee 1 | . . 1 Uniques/NPCs Destroyed . | . . . Combat | -11 -10 -9 -------- Run | Yrd Mat Mat Hostile Shots Fired 226 | . 99 127 Missed 69 | . 32 37 Damage Taken 1848 | . 670 1178 Core 511 | . 111 400 Absorbed by Shields . | . . . Core Remaining (%) 77 | 100 55 . Volleys Fired 80 | . 61 19 Largest 2 | . 2 2 Hottest 115 | . 115 90 Shots Fired 150 | . 122 28 Gun 150 | . 122 28 Cannon . | . . . Launcher . | . . . Special . | . . . Kinetic 8 | . 8 . Thermal 142 | . 114 28 Explosive . | . . . Electromagnetic . | . . . Robot Hit Streak 13 | . 8 13 Robot Miss Streak 7 | . 7 1 Penetration Max . | . . . Secondary Targets 2 | . 2 . Max Gunslinging Chain 1 | . 1 . Shots Hit Robots 101 | . 60 41 Core Hits 46 | . 28 18 Critical Kills . | . . . Critical Parts Destroyed . | . . . Critical Strikes 3 | . 3 . Burn 3 | . 3 . Melee Attacks 22 | . . 22 Impact . | . . . Slashing 22 | . . 22 Piercing . | . . . Sneak Attacks 1 | . . 1 Combat Hostiles . | . . . Follow-up Attacks . | . . . Damage Inflicted 1660 | . 746 914 Guns 1041 | . 746 295 Cannons . | . . . Explosions . | . . . Melee 619 | . . 619 Ramming . | . . . Kinetic 45 | . 45 . Thermal 996 | . 701 295 Explosive . | . . . Electromagnetic . | . . . Impact . | . . . Slashing 619 | . . 619 Piercing . | . . . Highest Corruption 7 | . 2 7 Average Corruption 2 | . 2 5 Corruption Purged . | . . . Corruption Blocked . | . . . Effects 21 | . 20 1 Message Errors 3 | . 2 1 Matter Fused 3 | . 3 . Heat Flow Errors 3 | . 3 . Energy Discharges 2 | . 2 . Data Loss (minor) 5 | . 5 . Data Loss (major) 1 | . 1 . Misfires 2 | . 2 . Weapon Failures 2 | . 2 . Overload Shots . | . . . Overflow Damage 53 | . . 53 Projectiles . | . . . Explosions . | . . . Melee 53 | . . 53 Knockbacks . | . . . Impact . | . . . Kinetic . | . . . Secondary . | . . . Self-Inflicted Damage . | . . . Shots . | . . . Rammed . | . . . Targets Rammed . | . . . Kicked . | . . . Crushed . | . . . Highest Temperature 441 | . 441 165 Average Temperature 101 | . 105 69 Received Heat Transfer 699 | . 237 462 Effects 1 | . 1 . Shutdowns 1 | . 1 . Siege Activations . | . . . Robots Corrupted . | . . . Combat Hostiles . | . . . Parts Fried . | . . . Impact Corruptions . | . . . Robots Melted . | . . . Combat Hostiles . | . . . Parts Melted 5 | . 4 1 Heat Transferred 2880 | . 2089 791 Parts Sabotaged . | . . . Parts Stolen . | . . . Parts Stripped . | . . . Power Chain Reactions . | . . . Alert | -11 -10 -9 ------- Run | Yrd Mat Mat Peak Influence 190 | . 190 161 Initial 14 | . . 14 Average 62 | . 69 48 Maximum Alert Level . | . . . Low Security (%) 100 | 100 100 100 Level 1 . | . . . Level 2 . | . . . Level 3 . | . . . Level 4 . | . . . Level 5 . | . . . High Security . | . . . Max Security . | . . . Squads Dispatched 6 | . 4 2 Investigation 4 | . 3 1 Extermination . | . . . Reinforcement 2 | . 1 1 Assault . | . . . Garrison . | . . . Intercept . | . . . Searches Triggered . | . . . Construction Impeded . | . . . Haulers Reinforced . | . . . Active Scanning Responses . | . . . Cargo Convoy Interrupts . | . . . Stealth | -11 -10 -9 --------- Run | Yrd Mat Mat Distress Signals 5 | . 2 3 Communications Jammed . | . . . Distress Signals . | . . . Times Spotted 45 | . 28 17 Peak Tracking Total 5 | . 3 5 Tactical Retreats 2 | . 2 . Traps | -11 -10 -9 ------- Run | Yrd Mat Mat Traps Triggered 3 | . 3 . Indirectly . | . . . Trap Hack Attempts . | . . . Triggered . | . . . Disarmed . | . . . Reprogrammed . | . . . Reused . | . . . Traps Extracted . | . . . Installed . | . . . Triggered . | . . . Machines | -11 -10 -9 ---------- Run | Yrd Mat Mat Machines Disabled . | . . . Max in Single Turn . | . . . Machines Repaired . | . . . Machines Dismantled . | . . . Machines Sabotaged . | . . . Overloaded Fab Kills . | . . . Hacking | -11 -10 -9 --------- Run | Yrd Mat Mat Machines Accessed 10 | . 9 1 Terminals 8 | . 7 1 Fabricators . | . . . Repair Stations . | . . . Recycling Units 2 | . 2 . Scanalyzers . | . . . Garrison Access . | . . . Total Hacks 35 | . 33 2 Successful 16 | . 16 . Failed 19 | . 17 2 Catastrophic 1 | . 1 . Database Lockouts . | . . . Manual 31 | . 29 2 Terminals 29 | . 27 2 Fabricators . | . . . Repair Stations . | . . . Recycling Units 6 | . 6 . Scanalyzers . | . . . Garrison Access . | . . . Terminal Hacks . | . . . Fabricator Hacks . | . . . Repair Station Hacks . | . . . Recycling Unit Hacks 3 | . 3 . Report Inventory 2 | . 2 . Retrieve Components 1 | . 1 . Scanalyzer . | . . . Garrison Access Hacks . | . . . Unauthorized Hacks 13 | . 13 . Terminals 11 | . 11 . Assimilate 3 | . 3 . Botnet 6 | . 6 . Operators 2 | . 2 . Fabricators . | . . . Repair Stations . | . . . Recycling Units 2 | . 2 . Tunnel 2 | . 2 . Scanalyzers . | . . . Garrison Access . | . . . Data Cores Recovered . | . . . Used . | . . . Hacking Detections 9 | . 8 1 Full Trace Events 3 | . 2 1 Feedback Events . | . . . Feedback Blocked . | . . . Robot Schematics Acquired . | . . . Robots Built . | . . . Authchips . | . . . Time . | . . . Total Robot Build Rating . | . . . Part Schematics Acquired . | . . . Parts Built . | . . . Authchips . | . . . Time . | . . . Total Part Build Rating . | . . . Parts Repaired . | . . . Time . | . . . Parts Recycled . | . . . Recycled Matter . | . . . Retrieved Matter . | . . . Retrieved Components 10 | . 10 . Parts Scanalyzed . | . . . Part Schematics Acquired . | . . . Parts Damaged . | . . . Bothacking | -11 -10 -9 ------------ Run | Yrd Mat Mat Used RIF Installer . | . . . Robots Hacked . | . . . Non-combat . | . . . Combat . | . . . Robot Hacks Applied . | . . . Relay Couplers Released . | . . . Fabnet Peak Effective % . | . . . Robots Rewired . | . . . Allies Hacked . | . . . Hacks Repelled . | . . . Allies | -11 -10 -9 -------- Run | Yrd Mat Mat Total Allies . | . . . Largest Group . | . . . Highest-Rated Group . | . . . Highest-Rated Ally . | . . . Total Orders . | . . . Ally Attacks . | . . . Total Damage . | . . . Kills . | . . . Allies Corrupted . | . . . Allies Melted . | . . . Intel | -11 -10 -9 ------- Run | Yrd Mat Mat Robot Analysis Total . | . . . Derelict Logs Recovered . | . . . Drone Launches . | . . . Drone Recoveries . | . . . Exploration | -11 -10 -9 ------------- Run | Yrd Mat Mat Turns Passed 2704 | 3 1829 872 Spaces Moved 867 | 3 671 193 Core . | . . . Treads 296 | . 228 68 Legs 499 | 3 443 53 Wheels 72 | . . 72 Hover . | . . . Flight . | . . . Fastest Speed 120 | 120 120 135 Average Speed 268 | 120 237 378 Slowest Speed 750 | 120 400 750 Overloaded Moves . | . . . Propulsion Burnouts . | . . . Robots Hopped . | . . . Cave-ins Triggered . | . . . Exploration Rate (%) 38 | 2 97 16 Regions Visited 2 Branch Regions . Pre-discovered Areas 2 | . 2 . Known Exits Taken . | . . . Unknown Exits Taken 2 | 1 1 . Scrap Searched . | . . . Spaces Dug . | . . . Terrain Destroyed . | . . . Melee . | . . . Projectile . | . . . AOE . | . . . Terrain Rammed . | . . . Walls Destroyed . | . . . Machines Disabled . | . . . Actions | -11 -10 -9 --------- Run | Yrd Mat Mat Total 1063 | 2 788 273 Wait 49 | . 30 19 Move 865 | 2 670 193 Hop . | . . . Pick Up 11 | . 6 5 Fast Attach 12 | . 7 5 Attach 13 | . 5 8 Detach . | . . . Swap 3 | . 2 1 Drop 8 | . 7 1 Fire 80 | . 61 19 Melee 22 | . . 22 Ram . | . . . Kick . | . . . Crush . | . . . Escape Stasis . | . . . Rewire . | . . . Trap . | . . . Miscellaneous . | . . . Route ------- -11/Scrapyard -10/Materials (discovered 5 exits: *Mat x3 / [*Min x2]) -9/Materials (discovered 1 exit: [*Min]) History --------- Turn | Location | Event 1 | -11/Scrapyard | Discovered new exit (range 0) 4 | -11/Scrapyard | Entered Materials 311 | -10/Materials | Discovered new exit (range 7) 314 | -10/Materials | Build established: Mutant 465 | -10/Materials | Discovered new exit (range 8) 726 | -10/Materials | Discovered new exit (range 7) 1089 | -10/Materials | Discovered new exit (range 10) 1445 | -10/Materials | Discovered new exit (range 15) 1833 | -10/Materials | Entered another Materials area 1833 | -9/Materials | Evolved 2 slots: Utility x2 2105 | -9/Materials | Discovered new exit (range 15) 2107 | -9/Materials | Lost 3 parts (1p2w) 2246 | -9/Materials | Core integrity fell below 50% 2290 | -9/Materials | Core integrity fell below 20% 2324 | -9/Materials | Lost 5 parts (1p3n1w) 2562 | -9/Materials | Build established: Scavenger-Mutant 2705 | -9/Materials | Destroyed by G-34 Mercenary with Small Laser Last Messages --------------- 02351_ Acquired Visual Processing Unit. 02352_ K-01 Serf collects debris. 02356_ K-01 Serf cleans the Matter Pump. 02358_ K-01 Serf collects debris. 02359_ Acquired Lgt. Ion Engine. 02359_ K-01 Serf collects debris. 02360_ Acquired 15 matter. 02362_ K-01 Serf collects debris. 02394_ Acquired 18 matter. 02408_ Dropped Lgt. Ion Engine. 02408_ Acquired Ion Engine. 02410_ Acquired 10 matter. 02449_ R-06 Scavenger collects Aluminum Leg. 02695_ Hacking Suite destroyed. 02695_ System corrupted by crushing effect (+3). 02695_ Knocked back. 02696_ EI8F4QGSHL7Q41F/VEQSNZDL%C 02699_ Aluminum Leg destroyed. 02699_ System corrupted by crushing effect (+4). 02702_ B-36 Bruiser destroyed. Map ----- +----------------------------------------------------+ | # =! +%#?????????????????????# # | | # !% *# #?????????????????????# # | | ?#####+## #########?????????????# # | | ?????#%[ # #?????????????# # | | ?????#%* # " #?????????????# # | | ?????# #! "" #?????????????# # | | ?????# # "" #?????????????# # | | ?????# # """ #?????????????# # | | ?????# # "" #?????????????# # | | ######/## + """ ######+######## # | | # ## # """ + # # # | | # "T" ## # """ ! # #!= # # | | # ## # " # /=""" # # | | # ##*# # #%""" # # | | # ## ####+#### # """ # + | | # """ *# ^% % ^ #%*= # # | | # """ [+% % ^^ #=% # # | | # """ =# """^ """ T # # # | | # # """ """ # %+" # | | # """ # =""" """ # " " ### # | | # """ # ! # "R" #?? # | | # """ # = # """ #?? # | | # # #######?? # | | ######## g ####### #???????? # | | ???????# ### ##????# #???????? # | | ???##### ##@ ##???# +???????? # | | ???# #%=* #???# #???????? # | | ???# +/=a #???# #?????????? | | ???# # < #???? ?????????? | | ???# ###+## #???? ?????????? | | ???# ## #"" ""#???? ?????????? | | ???# ## ##"!!!"##????? ???????????? | | ???# ## ###"""##??????????????????? | | ???# ## #??####???????????????????? | | ???# ## #?????????????????????????? | | ???# ## #?????????????????????????? | | ???# + #?????????????????????????? | | ???########?????????????????????????? | | ????????????????????????????????????? | | ????????????????????????????????????? | | ????????????????????????????????????? | | | | | | | | | | | | | | | | | | | +----------------------------------------------------+ Best States ------------- Heat Dissipation 42 Energy Generation 10 Energy Capacity 250 Matter Stores 300 Matter Capacity 300 Sight Range 16 Terrain Scan Density 10 Evasion (%) 55 Targeting Accuracy 5 Melee Accuracy 5 Recoil Reduction 2 Offensive Hacking 10 Item Schematics ----------------- None Robot Schematics ------------------ None Fabricated ------------ Nothing Alien Tech Used ----------------- None Achievements -------------- None Challenges ------------ None Game ------ Seed DroneGyrokineticGuard Manual? 0 Play Time 00:12:18 Cumulative 70.5 hours Start 2024.11.14 @ 07:33:06 End 2024.11.14 @ 07:44:34 Sessions 1 Manual Loads 0 Difficulty Rogue Special Mode None Game No. 119 Rogue 119 Adventurer 0 Explorer 0 Win Type - Total 0 Types 0/0/0/0/0/0/0/0/0 Lore% 40 Gallery% 35 Achievement% 34 Wizard Run 0 Options --------- Layout 0 ASCII 0 Keyboard 0 Movement Mouse Keybinds 0 Fullscreen 1 Font 24/Smallcaps Map View 91x25 Zoom Use 73% Tactical HUD 1 Map Filters NONE Filters NONE Steam 1 RUN: 91fcfa18-65d5-4678-bea6-5f04ba08d878